[Event "19th Bangkok Open 2019"]
[Site "Bangkok"]
[Date "2019.04.07"]
[Round "2.9"]
[White "Savige, Colin B"]
[Black "Swapnil, S. Dhopade"]
[Result "1-0"]
[ECO "B11"]
[WhiteElo "1952"]
[BlackElo "2488"]
[Annotator "ChessBase"]
[PlyCount "122"]
[EventDate "2019.04.06"]
[EventType "swiss"]
[EventCountry "THA"]
[SourceTitle "playchess.com"]
[Source "ChessBase"]
[SourceQuality "1"]
[TimeControl "40/5400+30:1800+30"]

1. e4 {[%emt 0:00:00]} c6 {[%emt 0:01:54]} 2. Nf3 {[%emt 0:00:25]} d5 {[%emt 0:00:07]} 3. Nc3 {[%emt 0:00:07]} Nf6 {[%emt 0:00:29]} 4. e5 {[%emt 0:01:28]} Ne4 {[%emt 0:00:08]} 5. Qe2 {[%emt 0:05:06]} Nxc3 {[%emt 0:01:02]} 6. bxc3 {[%emt 0:00:20]} e6 {[%emt 0:01:04]} 7. d4 {[%emt 0:00:35]} c5 {[%emt 0:03:45]} 8. h4 {[%emt 0:01:11]} Nc6 {[%emt 0:01:16]} 9. h5 {[%emt 0:08:16]} h6 {[%emt 0:03:40]} 10. g3 {[%emt 0:05:15]} Qa5 {[%emt 0:02:25]} 11. Bd2 {[%emt 0:19:31]} Qa4 {[%emt 0:01:42]} 12. Be3 {[%emt 0:11:34]} Qa3 {[%emt 0:00:58]} 13. Kd2 {[%emt 0:12:16]} c4 {[%emt 0:05:45]} 14. Qd1 {[%emt 0:10:32]} Nb8 {[%emt 0:07:33]} 15. Qc1 {[%emt 0:00:55]} Qa5 {[%emt 0:00:14]} 16. a3 {[%emt 0:00:05]} Nd7 {[%emt 0:00:49]} 17. Ng1 {[%emt 0:00:14]} Nb6 {[%emt 0:00:44]} 18. Ne2 {[%emt 0:00:10]} Na4 {[%emt 0:00:18]} 19. Ke1 {[%emt 0:00:18]} Bd7 {[%emt 0:16:28]} 20. Bd2 {[%emt 0:03:37]} O-O-O {[%emt 0:02:10]} 21. g4 {[%emt 0:08:35]} Be7 {[%emt 0:12:58]} 22. Rh3 {[%emt 0:00:12]} Kb8 {[%emt 0:03:01]} 23. Bg2 {[%emt 0:00:14]} Rc8 {[%emt 0:00:30]} 24. Kf1 {[%emt 0:00:30]} Rc6 {[%emt 0:00:06]} 25. f4 {[%emt 0:04:11]} Ra6 {[%emt 0:01:26]} 26. Rf3 {[%emt 0:01:25]} Nb6 {[%emt 0:23:58]} 27. Qd1 {[%emt 0:01:53]} Qb5 {[%emt 0:00:36]} 28. Bc1 {[%emt 0:02:21]} g6 {[%emt 0:02:03]} 29. Ng3 {[%emt 0:00:23]} Bh4 {[%emt 0:00:56]} 30. Bh3 {[%emt 0:01:12]} Rg8 {[%emt 0:00:59]} 31. Kg2 {[%emt 0:00:21]} Nc8 {[%emt 0:00:59]} 32. hxg6 {[%emt 0:00:26]} fxg6 {[%emt 0:00:34]} 33. Ne2 {[%emt 0:00:16]} Bd8 {[%emt 0:01:43]} 34. Kf1 {[%emt 0:01:22]} h5 {[%emt 0:00:29]} 35. gxh5 {[%emt 0:00:24]} gxh5 {[%emt 0:00:04]} 36. Rg3 {[%emt 0:00:09]} Rxg3 {[%emt 0:04:22]} 37. Nxg3 {[%emt 0:00:05]} h4 {[%emt 0:00:02]} 38. Nh5 {[%emt 0:00:28]} Qa5 {[%emt 0:00:44]} 39. Bd2 {[%emt 0:00:14]} Be7 {[%emt 0:00:28]} 40. Qg4 {[%emt 0:00:00]} Qd8 {[%emt 0:00:00]} 41. Be1 {[%emt 0:05:57]} Be8 {[%emt 0:10:32]} 42. Nf6 {[%emt 0:09:21]} Bxf6 {[%emt 0:00:35]} 43. exf6 {[%emt 0:00:04]} Qxf6 {[%emt 0:00:04]} 44. Bxh4 {[%emt 0:01:13]} Qg6 {[%emt 0:16:59]} 45. f5 {[%emt 0:03:22]} exf5 {[%emt 0:01:48]} 46. Qxf5 {[%emt 0:00:06]} Nd6 {[%emt 0:03:20]} 47. Qxd5 {[%emt 0:13:07]} Qxc2 {[%emt 0:00:04]} 48. Qf3 {[%emt 0:00:18]} Rb6 {[%emt 0:01:37]} 49. Re1 {[%emt 0:00:36]} Rb1 {[%emt 0:00:30]} 50. Bg2 {[%emt 0:02:13]} Rxe1+ {[%emt 0:00:26]} 51. Bxe1 {[%emt 0:00:02]} Kc7 {[%emt 0:00:34]} 52. Bg3 {[%emt 0:00:13]} Qc1+ {[%emt 0:00:30]} 53. Kf2 {[%emt 0:00:14]} Qc2+ {[%emt 0:00:29]} 54. Kg1 {[%emt 0:00:12]} Bc6 {[%emt 0:00:08]} 55. d5 {[%emt 0:00:44]} Qc1+ {[%emt 0:00:09]} 56. Kh2 {[%emt 0:00:28]} Qh6+ {[%emt 0:00:07]} 57. Kg1 {[%emt 0:00:08]} Qc1+ {[%emt 0:00:29]} 58. Bf1 {[%emt 0:01:02]} Bd7 {[%emt 0:00:32]} 59. Qf6 {[%emt 0:01:05]} Qe3+ {[%emt 0:00:21]} 60. Qf2 {[%emt 0:00:44]} Qxf2+ {[%emt 0:01:16]} 61. Kxf2 {[%emt 0:00:07]} Bf5 {[%emt 0:01:31]} 1-0

[Event "19th Bangkok Open 2019"]
[Site "Bangkok"]
[Date "2019.04.07"]
[Round "2.10"]
[White "Tantipura, Noppakorn"]
[Black "Kunte, Abhijit"]
[Result "0-1"]
[ECO "B43"]
[WhiteElo "1945"]
[BlackElo "2485"]
[Annotator "ChessBase"]
[PlyCount "83"]
[EventDate "2019.04.06"]
[EventType "swiss"]
[EventCountry "THA"]
[SourceTitle "playchess.com"]
[Source "ChessBase"]
[SourceQuality "1"]
[TimeControl "40/5400+30:1800+30"]

1. e4 {[%emt 0:00:00]} c5 {[%emt 0:01:48]} 2. Nf3 {[%emt 0:00:00]} e6 {[%emt 0:01:06]} 3. d4 {[%emt 0:01:44]} cxd4 {[%emt 0:00:09]} 4. Nxd4 {[%emt 0:00:08]} a6 {[%emt 0:00:12]} 5. Nc3 {[%emt 0:01:01]} Qc7 {[%emt 0:00:18]} 6. Bd3 {[%emt 0:02:04]} b5 {[%emt 0:05:49]} 7. a3 {[%emt 0:05:00]} Bb7 {[%emt 0:04:21]} 8. O-O {[%emt 0:00:53]} Nf6 {[%emt 0:02:41]} 9. Qe2 {[%emt 0:09:47]} Bc5 {[%emt 0:09:57]} 10. Be3 {[%emt 0:04:36]} Qb6 {[%emt 0:05:11]} 11. Nf3 {[%emt 0:18:53]} Bxe3 {[%emt 0:03:39]} 12. fxe3 {[%emt 0:00:18]} Nc6 {[%emt 0:03:36]} 13. Rae1 {[%emt 0:04:33]} Qc7 {[%emt 0:04:21]} 14. Qf2 {[%emt 0:03:11]} Ng4 {[%emt 0:04:38]} 15. Qh4 {[%emt 0:01:04]} Nge5 {[%emt 0:00:08]} 16. Qg3 {[%emt 0:03:05]} O-O {[%emt 0:03:35]} 17. Rd1 {[%emt 0:04:32]} Rac8 {[%emt 0:01:05]} 18. Ne2 {[%emt 0:03:37]} Nxf3+ {[%emt 0:04:01]} 19. gxf3 {[%emt 0:01:17]} Qxg3+ {[%emt 0:00:09]} 20. hxg3 {[%emt 0:01:03]} Ne5 {[%emt 0:00:14]} 21. Nd4 {[%emt 0:06:16]} f6 {[%emt 0:00:52]} 22. Rd2 {[%emt 0:03:07]} Kf7 {[%emt 0:01:27]} 23. Kf2 {[%emt 0:01:20]} Ke7 {[%emt 0:00:37]} 24. Rfd1 {[%emt 0:05:56]} Rc7 {[%emt 0:01:42]} 25. Be2 {[%emt 0:02:57]} g6 {[%emt 0:04:56]} 26. c3 {[%emt 0:02:02]} h5 {[%emt 0:01:55]} 27. Ra1 {[%emt 0:02:50]} Rh8 {[%emt 0:06:44]} 28. a4 {[%emt 0:06:21]} Nc4 {[%emt 0:00:19]} 29. Bxc4 {[%emt 0:01:13]} bxc4 {[%emt 0:00:07]} 30. Kg2 {[%emt 0:01:43]} Rc5 {[%emt 0:04:51]} 31. Nc2 {[%emt 0:02:11]} g5 {[%emt 0:03:43]} 32. Rd4 {[%emt 0:01:57]} Rhc8 {[%emt 0:05:46]} 33. Rh1 {[%emt 0:00:46]} g4 {[%emt 0:00:10]} 34. Rhd1 {[%emt 0:00:58]} R8c7 {[%emt 0:00:25]} 35. Na3 {[%emt 0:00:36]} f5 {[%emt 0:01:03]} 36. fxg4 {[%emt 0:00:29]} hxg4 {[%emt 0:00:13]} 37. Kf2 {[%emt 0:00:31]} Bxe4 {[%emt 0:00:10]} 38. Nb1 {[%emt 0:00:30]} Rb7 {[%emt 0:03:36]} 39. R4d2 {[%emt 0:00:29]} d5 {[%emt 0:00:20]} 40. Kg1 {[%emt 0:00:00]} Rc8 {[%emt 0:00:00]} 41. Rh2 {[%emt 0:01:02]} Rcb8 {[%emt 0:01:08]} 42. Rh7+ {[%emt 0:05:45]} 0-1

[Event "19th Bangkok Open 2019"]
[Site "Bangkok"]
[Date "2019.04.07"]
[Round "2.11"]
[White "Lou, Yiping"]
[Black "Tobor, Mick"]
[Result "1-0"]
[ECO "B90"]
[WhiteElo "2482"]
[BlackElo "1949"]
[Annotator "RC"]
[PlyCount "66"]
[EventDate "2019.04.06"]
[EventType "swiss"]
[EventCountry "THA"]
[SourceTitle "playchess.com"]
[Source "ChessBase"]
[SourceQuality "1"]
[TimeControl "40/5400+30:1800+30"]

1. e4 {[%emt 0:02:48]} c5 {[%emt 0:00:00]} 2. Nf3 {[%emt 0:00:08]} d6 {[%emt 0:00:00]} 3. d4 {[%emt 0:00:05]} cxd4 {[%emt 0:00:00]} 4. Nxd4 {[%emt 0:00:02]} Nf6 {[%emt 0:00:11]} 5. Nc3 {[%emt 0:00:05]} a6 {[%emt 0:00:12]} 6. h3 {[%emt 0:00:07]} e5 {[%emt 0:01:00]} 7. Nde2 {[%emt 0:00:10]} Be6 {[%emt 0:02:20]} 8. g4 {[%emt 0:01:30]} Be7 {[%emt 0:12:44]} 9. g5 {[%emt 0:00:47]} Nh5 {[%emt 0:03:14]} 10. h4 {[%emt 0:00:28]} Nd7 {[%emt 0:05:56]} 11. Bg2 {[%emt 0:01:57]} O-O {[%emt 0:22:57]} 12. Bf3 {[%emt 0:02:02]} Nf4 {[%emt 0:00:26]} 13. Nxf4 {[%emt 0:00:36]} exf4 {[%emt 0:00:07]} 14. Bxf4 {[%emt 0:00:29]} Ne5 {[%emt 0:02:43]} 15. Be2 {[%emt 0:04:01]} Qb6 {[%emt 0:02:38]} 16. Rb1 {[%emt 0:03:42]} Qc6 {[%emt 0:03:35]} 17. Be3 {[%emt 0:14:40]} Rac8 {[%emt 0:05:14]} 18. f4 {[%emt 0:08:23]} Nc4 {[%emt 0:02:06]} 19. Bd4 {[%emt 0:01:32]} f5 {[%emt 0:05:15]} 20. Bf3 {[%emt 0:01:23]} fxe4 {[%emt 0:00:57]} 21. Bxe4 {[%emt 0:00:21]} d5 {[%emt 0:00:24]} 22. Bxh7+ {[%emt 0:00:39]} Kxh7 {[%emt 0:00:44]} 23. Qh5+ {[%emt 0:00:19]} Kg8 {[%emt 0:00:14]} 24. g6 {[%emt 0:00:20]} Rf6 {[%emt 0:01:04]} 25. f5 {[%emt 0:07:59]} Rxf5 {[%emt 0:05:38]} 26. Qh7+ {[%emt 0:02:29]} Kf8 {[%emt 0:00:08]} 27. Qh8+ {[%emt 0:00:40]} Bg8 {[%emt 0:00:20]} 28. Qxg7+ {[%emt 0:00:08]} Ke8 {[%emt 0:00:16]} 29. Qxg8+ {[%emt 0:00:42]} Kd7 {[%emt 0:00:33]} 30. Qg7 {[%emt 0:02:08]} Qe6+ {[%emt 0:00:49]} 31. Kd1 {[%emt 0:01:04]} Rcf8 {[%emt 0:03:56]} 32. Re1 {[%emt 0:13:10]} Rf1 {[%emt 0:00:41]} 33. Ne2 {[%emt 0:00:23]} Qf5 {[%emt 0:06:16]} 1-0

[Event "19th Bangkok Open 2019"]
[Site "Bangkok"]
[Date "2019.04.07"]
[Round "2.12"]
[White "Nguyen, Le Minh Phu"]
[Black "Horvath, Jozsef"]
[Result "0-1"]
[ECO "D85"]
[WhiteElo "1934"]
[BlackElo "2479"]
[Annotator "ChessBase"]
[PlyCount "96"]
[EventDate "2019.04.06"]
[EventType "swiss"]
[EventCountry "THA"]
[SourceTitle "playchess.com"]
[Source "ChessBase"]
[SourceQuality "1"]
[TimeControl "40/5400+30:1800+30"]

1. d4 {[%emt 0:00:00]} Nf6 {[%emt 0:05:20]} 2. c4 {[%emt 0:00:00]} g6 {[%emt 0:00:10]} 3. Nc3 {[%emt 0:00:00]} d5 {[%emt 0:00:25]} 4. cxd5 {[%emt 0:00:02]} Nxd5 {[%emt 0:00:08]} 5. e4 {[%emt 0:00:19]} Nxc3 {[%emt 0:00:11]} 6. bxc3 {[%emt 0:00:10]} Bg7 {[%emt 0:00:04]} 7. Be3 {[%emt 0:00:30]} c5 {[%emt 0:00:29]} 8. Nf3 {[%emt 0:00:42]} Bg4 {[%emt 0:00:29]} 9. Rc1 {[%emt 0:05:06]} O-O {[%emt 0:03:24]} 10. Be2 {[%emt 0:04:33]} Qa5 {[%emt 0:01:56]} 11. Qd2 {[%emt 0:00:21]} e6 {[%emt 0:23:12]} 12. O-O {[%emt 0:20:58]} cxd4 {[%emt 0:15:20]} 13. cxd4 {[%emt 0:01:23]} Qxd2 {[%emt 0:02:50]} 14. Bxd2 {[%emt 0:00:18]} Bxf3 {[%emt 0:04:06]} 15. Bxf3 {[%emt 0:00:39]} Bxd4 {[%emt 0:00:43]} 16. Bb4 {[%emt 0:00:37]} Rd8 {[%emt 0:04:14]} 17. e5 {[%emt 0:02:11]} Nc6 {[%emt 0:07:47]} 18. Bxc6 {[%emt 0:01:21]} bxc6 {[%emt 0:00:01]} 19. Bd6 {[%emt 0:00:03]} c5 {[%emt 0:00:58]} 20. Rc4 {[%emt 0:02:08]} f6 {[%emt 0:05:20]} 21. Be7 {[%emt 0:03:09]} fxe5 {[%emt 0:01:19]} 22. Bxd8 {[%emt 0:00:25]} Rxd8 {[%emt 0:00:01]} 23. Rb1 {[%emt 0:02:10]} Rd7 {[%emt 0:04:41]} 24. a4 {[%emt 0:01:20]} Kf7 {[%emt 0:01:46]} 25. a5 {[%emt 0:05:24]} Ke7 {[%emt 0:00:23]} 26. Rcc1 {[%emt 0:00:31]} Kd6 {[%emt 0:00:32]} 27. a6 {[%emt 0:10:33]} Kc6 {[%emt 0:00:43]} 28. Rb8 {[%emt 0:00:42]} Rf7 {[%emt 0:09:15]} 29. Rc2 {[%emt 0:01:28]} e4 {[%emt 0:00:52]} 30. Re2 {[%emt 0:01:28]} e5 {[%emt 0:02:06]} 31. g3 {[%emt 0:01:47]} c4 {[%emt 0:01:07]} 32. Rxe4 {[%emt 0:00:56]} Bxf2+ {[%emt 0:00:21]} 33. Kg2 {[%emt 0:00:46]} Bd4 {[%emt 0:00:17]} 34. Re2 {[%emt 0:00:51]} c3 {[%emt 0:00:34]} 35. h4 {[%emt 0:03:09]} h5 {[%emt 0:01:08]} 36. Rg8 {[%emt 0:05:51]} Rf6 {[%emt 0:00:24]} 37. g4 {[%emt 0:01:38]} hxg4 {[%emt 0:01:36]} 38. Kg3 {[%emt 0:00:53]} Kd5 {[%emt 0:00:27]} 39. Kxg4 {[%emt 0:03:35]} Rxa6 {[%emt 0:00:18]} 40. Kg5 {[%emt 0:00:00]} Kc4 {[%emt 0:00:00]} 41. Rf8 {[%emt 0:09:26]} Kd3 {[%emt 0:02:12]} 42. Rg2 {[%emt 0:00:52]} c2 {[%emt 0:05:02]} 43. Rg3+ {[%emt 0:06:10]} Be3+ {[%emt 0:00:37]} 44. Rxe3+ {[%emt 0:00:24]} Kxe3 {[%emt 0:00:02]} 45. Rc8 {[%emt 0:00:45]} Kd2 {[%emt 0:00:34]} 46. Rd8+ {[%emt 0:00:20]} Kc1 {[%emt 0:00:12]} 47. Rd5 {[%emt 0:00:19]} Kb2 {[%emt 0:02:10]} 48. Rb5+ {[%emt 0:00:24]} Kc3 {[%emt 0:00:23]} 0-1

[Event "19th Bangkok Open 2019"]
[Site "Bangkok"]
[Date "2019.04.08"]
[Round "3.4"]
[White "Habla, Jony"]
[Black "Stella, Andrea"]
[Result "0-1"]
[ECO "D85"]
[WhiteElo "2146"]
[BlackElo "2512"]
[Annotator "RC"]
[PlyCount "146"]
[EventDate "2019.04.06"]
[EventType "swiss"]
[EventCountry "THA"]
[SourceTitle "playchess.com"]
[Source "ChessBase"]
[SourceQuality "1"]
[TimeControl "40/5400+30:1800+30"]

1. d4 {[%emt 0:00:00]} Nf6 {[%emt 0:03:54]} 2. c4 {[%emt 0:00:54]} g6 {[%emt 0:00:06]} 3. Nc3 {[%emt 0:00:06]} d5 {[%emt 0:00:04]} 4. cxd5 {[%emt 0:00:07]} Nxd5 {[%emt 0:00:04]} 5. e4 {[%emt 0:00:07]} Nxc3 {[%emt 0:00:03]} 6. bxc3 {[%emt 0:00:05]} Bg7 {[%emt 0:00:02]} 7. Rb1 {[%emt 0:03:50]} O-O {[%emt 0:01:33]} 8. h3 {[%emt 0:01:18]} c5 {[%emt 0:00:23]} 9. Nf3 {[%emt 0:00:15]} cxd4 {[%emt 0:01:54]} 10. cxd4 {[%emt 0:00:06]} Qa5+ {[%emt 0:00:57]} 11. Bd2 {[%emt 0:00:36]} Qxa2 {[%emt 0:00:20]} 12. Qc1 {[%emt 0:00:22]} Qe6 {[%emt 0:02:41]} 13. Bd3 {[%emt 0:02:59]} b6 {[%emt 0:02:51]} 14. d5 {[%emt 0:07:19]} Qd7 {[%emt 0:02:45]} 15. Bb5 {[%emt 0:03:48]} Qb7 {[%emt 0:06:14]} 16. O-O {[%emt 0:01:22]} Bd7 {[%emt 0:00:23]} 17. Bd3 {[%emt 0:00:38]} e6 {[%emt 0:02:03]} 18. Re1 {[%emt 0:07:50]} exd5 {[%emt 0:14:31]} 19. exd5 {[%emt 0:00:31]} Na6 {[%emt 0:14:35]} 20. Bh6 {[%emt 0:05:50]} Rac8 {[%emt 0:07:56]} 21. Qg5 {[%emt 0:04:35]} Nc5 {[%emt 0:01:45]} 22. Bxg7 {[%emt 0:07:08]} Kxg7 {[%emt 0:00:35]} 23. Bc2 {[%emt 0:04:49]} Qb8 {[%emt 0:02:06]} 24. Rb4 {[%emt 0:03:52]} h6 {[%emt 0:02:19]} 25. Qc1 {[%emt 0:02:41]} Rfe8 {[%emt 0:09:54]} 26. Qa1+ {[%emt 0:05:12]} f6 {[%emt 0:01:20]} 27. Rd1 {[%emt 0:01:14]} Re2 {[%emt 0:18:05]} 28. Qb1 {[%emt 0:04:14]} Na6 {[%emt 0:03:05]} 29. Rb2 {[%emt 0:00:47]} Qf4 {[%emt 0:00:57]} 30. Bd3 {[%emt 0:03:40]} Rxb2 {[%emt 0:00:04]} 31. Qxb2 {[%emt 0:00:12]} Nc5 {[%emt 0:00:33]} 32. Bf1 {[%emt 0:00:08]} Qd6 {[%emt 0:00:32]} 33. Qb1 {[%emt 0:02:34]} a5 {[%emt 0:00:43]} 34. Nh4 {[%emt 0:01:05]} f5 {[%emt 0:00:51]} 35. Re1 {[%emt 0:00:32]} Qf6 {[%emt 0:00:44]} 36. d6 {[%emt 0:01:23]} Qxd6 {[%emt 0:00:32]} 37. Qa1+ {[%emt 0:01:15]} Kh7 {[%emt 0:00:01]} 38. Bc4 {[%emt 0:01:02]} Ne4 {[%emt 0:00:33]} 39. Rd1 {[%emt 0:01:39]} Qe7 {[%emt 0:00:36]} 40. Qd4 {[%emt 0:01:38]} Ba4 {[%emt 0:00:00]} 41. Ra1 {[%emt 0:17:48]} Qc5 {[%emt 0:13:26]} 42. Qb2 {[%emt 0:10:36]} Qxc4 {[%emt 0:01:09]} 43. Qxb6 {[%emt 0:00:20]} Be8 {[%emt 0:03:27]} 44. Qxa5 {[%emt 0:01:28]} Qd4 {[%emt 0:03:51]} 45. Qa2 {[%emt 0:09:25]} Rc2 {[%emt 0:06:29]} 46. Qa7+ {[%emt 0:07:59]} Qxa7 {[%emt 0:00:04]} 47. Rxa7+ {[%emt 0:00:04]} Kg8 {[%emt 0:00:02]} 48. f4 {[%emt 0:01:07]} Rc1+ {[%emt 0:02:42]} 49. Kh2 {[%emt 0:00:10]} Nd2 {[%emt 0:00:10]} 50. Kg3 {[%emt 0:02:11]} Kf8 {[%emt 0:00:15]} 51. Ra6 {[%emt 0:02:43]} Kg7 {[%emt 0:00:20]} 52. Re6 {[%emt 0:00:32]} Bf7 {[%emt 0:00:12]} 53. Rb6 {[%emt 0:00:18]} Rf1 {[%emt 0:00:41]} 54. Rb7 {[%emt 0:01:24]} Rb1 {[%emt 0:01:52]} 55. Rd7 {[%emt 0:00:24]} Rb2 {[%emt 0:00:07]} 56. Kh2 {[%emt 0:00:33]} Ra2 {[%emt 0:01:12]} 57. Kg1 {[%emt 0:00:19]} Ra1+ {[%emt 0:01:16]} 58. Kf2 {[%emt 0:00:40]} Ne4+ {[%emt 0:00:01]} 59. Ke2 {[%emt 0:00:49]} Kf6 {[%emt 0:01:06]} 60. Rc7 {[%emt 0:00:09]} Ra2+ {[%emt 0:00:20]} 61. Ke3 {[%emt 0:00:41]} Ra3+ {[%emt 0:00:08]} 62. Kd4 {[%emt 0:00:30]} Ra4+ {[%emt 0:00:14]} 63. Ke3 {[%emt 0:00:13]} Rc4 {[%emt 0:00:05]} 64. Ra7 {[%emt 0:00:17]} g5 {[%emt 0:01:15]} 65. fxg5+ {[%emt 0:00:33]} Nxg5 {[%emt 0:00:17]} 66. Ra6+ {[%emt 0:02:11]} Be6 {[%emt 0:00:20]} 67. g3 {[%emt 0:00:38]} Rc3+ {[%emt 0:00:15]} 68. Kf2 {[%emt 0:00:57]} Nxh3+ {[%emt 0:00:08]} 69. Kg2 {[%emt 0:00:22]} Ng5 {[%emt 0:00:06]} 70. Kh2 {[%emt 0:00:16]} Nf3+ {[%emt 0:01:01]} 71. Nxf3 {[%emt 0:01:12]} Rxf3 {[%emt 0:00:04]} 72. Ra4 {[%emt 0:00:33]} Re3 {[%emt 0:00:14]} 73. Rh4 {[%emt 0:00:19]} Kg5 {[%emt 0:00:09]} 0-1

[Event "19th Bangkok Open 2019"]
[Site "Bangkok"]
[Date "2019.04.10"]
[Round "5.7"]
[White "Susilodinata, Andrean"]
[Black "Ly, Moulthun"]
[Result "1-0"]
[ECO "C67"]
[WhiteElo "2314"]
[BlackElo "2490"]
[Annotator "ChessBase"]
[PlyCount "87"]
[EventDate "2019.04.06"]
[EventType "swiss"]
[EventCountry "THA"]
[SourceTitle "playchess.com"]
[Source "ChessBase"]
[SourceQuality "1"]
[TimeControl "40/5400+30:1800+30"]

1. e4 {[%emt 0:00:00]} e5 {[%emt 0:00:00]} 2. Nf3 {[%emt 0:00:00]} Nc6 {[%emt 0:00:15]} 3. Bb5 {[%emt 0:00:00]} Nf6 {[%emt 0:01:59]} 4. O-O {[%emt 0:00:09]} Nxe4 {[%emt 0:00:20]} 5. d4 {[%emt 0:00:05]} Nd6 {[%emt 0:00:10]} 6. Bxc6 {[%emt 0:00:05]} dxc6 {[%emt 0:00:07]} 7. dxe5 {[%emt 0:00:05]} Nf5 {[%emt 0:00:07]} 8. Qxd8+ {[%emt 0:00:07]} Kxd8 {[%emt 0:00:05]} 9. Nc3 {[%emt 0:01:32]} Bd7 {[%emt 0:05:24]} 10. Bf4 {[%emt 0:04:47]} h6 {[%emt 0:03:54]} 11. Rad1 {[%emt 0:00:07]} Kc8 {[%emt 0:00:48]} 12. Rd3 {[%emt 0:16:09]} Be6 {[%emt 0:02:45]} 13. b3 {[%emt 0:01:46]} b6 {[%emt 0:01:47]} 14. h3 {[%emt 0:03:27]} c5 {[%emt 0:02:47]} 15. Rfd1 {[%emt 0:01:47]} Kb7 {[%emt 0:00:33]} 16. Nd5 {[%emt 0:05:01]} Ne7 {[%emt 0:05:07]} 17. c4 {[%emt 0:01:54]} a5 {[%emt 0:04:32]} 18. a4 {[%emt 0:00:11]} g5 {[%emt 0:00:38]} 19. Bh2 {[%emt 0:04:33]} Nc6 {[%emt 0:03:47]} 20. g4 {[%emt 0:15:07]} Bg7 {[%emt 0:20:06]} 21. Nf6 {[%emt 0:00:24]} Bxf6 {[%emt 0:04:40]} 22. exf6 {[%emt 0:00:05]} Rag8 {[%emt 0:00:35]} 23. Kg2 {[%emt 0:13:23]} Kc8 {[%emt 0:02:57]} 24. Ne5 {[%emt 0:05:27]} Nd4 {[%emt 0:03:33]} 25. f4 {[%emt 0:00:11]} gxf4 {[%emt 0:01:21]} 26. Bxf4 {[%emt 0:00:03]} h5 {[%emt 0:00:27]} 27. g5 {[%emt 0:00:30]} h4 {[%emt 0:01:45]} 28. g6 {[%emt 0:06:47]} Rh5 {[%emt 0:13:26]} 29. g7 {[%emt 0:01:43]} Rf5 {[%emt 0:00:33]} 30. Rxd4 {[%emt 0:00:43]} cxd4 {[%emt 0:00:09]} 31. Nc6 {[%emt 0:00:07]} Rxf6 {[%emt 0:04:44]} 32. Ne7+ {[%emt 0:00:06]} Kb7 {[%emt 0:00:14]} 33. Nxg8 {[%emt 0:00:15]} Rg6+ {[%emt 0:00:15]} 34. Kf3 {[%emt 0:06:47]} Rxg7 {[%emt 0:00:15]} 35. Nf6 {[%emt 0:00:28]} Rg6 {[%emt 0:02:33]} 36. Ng4 {[%emt 0:00:59]} c5 {[%emt 0:00:11]} 37. Re1 {[%emt 0:00:12]} Rg8 {[%emt 0:00:27]} 38. Re5 {[%emt 0:00:55]} Rc8 {[%emt 0:00:40]} 39. Nf2 {[%emt 0:04:13]} Rd8 {[%emt 0:01:33]} 40. Bg5 {[%emt 0:00:00]} Rd7 {[%emt 0:00:00]} 41. Ke2 {[%emt 0:01:54]} d3+ {[%emt 0:01:59]} 42. Kd2 {[%emt 0:01:00]} Rd4 {[%emt 0:00:16]} 43. Be3 {[%emt 0:00:09]} Rd8 {[%emt 0:00:10]} 44. Rh5 {[%emt 0:00:21]} 1-0

[Event "19th Bangkok Open 2019"]
[Site "Bangkok"]
[Date "2019.04.13"]
[Round "8.6"]
[White "Vasquez Schroeder, Rodrigo"]
[Black "Schebler, Gerhard"]
[Result "1/2-1/2"]
[ECO "A39"]
[WhiteElo "2487"]
[BlackElo "2385"]
[Annotator "ChessBase"]
[PlyCount "90"]
[EventDate "2019.04.06"]
[EventType "swiss"]
[EventCountry "THA"]
[SourceTitle "playchess.com"]
[Source "ChessBase"]
[SourceQuality "1"]
[TimeControl "40/5400+30:1800+30"]

1. d4 {[%emt 0:01:04]} Nf6 {[%emt 0:02:02]} 2. c4 {[%emt 0:00:09]} g6 {[%emt 0:00:38]} 3. g3 {[%emt 0:01:34]} c5 {[%emt 0:00:28]} 4. Nf3 {[%emt 0:00:16]} cxd4 {[%emt 0:00:35]} 5. Nxd4 {[%emt 0:00:14]} Bg7 {[%emt 0:00:51]} 6. Bg2 {[%emt 0:00:09]} O-O {[%emt 0:00:13]} 7. Nc3 {[%emt 0:00:28]} Nc6 {[%emt 0:00:03]} 8. O-O {[%emt 0:00:50]} Qa5 {[%emt 0:00:02]} 9. e3 {[%emt 0:09:45]} d6 {[%emt 0:00:24]} 10. Qe2 {[%emt 0:09:32]} Bg4 {[%emt 0:05:36]} 11. Qd2 {[%emt 0:06:35]} Rfc8 {[%emt 0:04:30]} 12. b3 {[%emt 0:03:52]} Rab8 {[%emt 0:06:19]} 13. h3 {[%emt 0:03:48]} Bd7 {[%emt 0:00:10]} 14. Nde2 {[%emt 0:01:03]} a6 {[%emt 0:01:40]} 15. a3 {[%emt 0:24:10]} b5 {[%emt 0:03:18]} 16. b4 {[%emt 0:01:44]} Qb6 {[%emt 0:08:43]} 17. cxb5 {[%emt 0:00:26]} axb5 {[%emt 0:11:36]} 18. f4 {[%emt 0:00:34]} Be6 {[%emt 0:05:12]} 19. Bb2 {[%emt 0:00:22]} Bc4 {[%emt 0:00:06]} 20. Kh2 {[%emt 0:00:32]} d5 {[%emt 0:00:58]} 21. Rfc1 {[%emt 0:01:43]} Rd8 {[%emt 0:00:47]} 22. Nd1 {[%emt 0:02:17]} Ne4 {[%emt 0:07:50]} 23. Qc2 {[%emt 0:00:18]} e5 {[%emt 0:00:17]} 24. fxe5 {[%emt 0:01:58]} Nxe5 {[%emt 0:00:59]} 25. Bd4 {[%emt 0:01:06]} Qd6 {[%emt 0:00:11]} 26. Nf4 {[%emt 0:00:13]} Nxg3 {[%emt 0:25:08]} 27. Bc5 {[%emt 0:06:17]} Qc7 {[%emt 0:00:52]} 28. Kxg3 {[%emt 0:01:39]} Nd3 {[%emt 0:00:49]} 29. h4 {[%emt 0:03:23]} d4 {[%emt 0:03:54]} 30. Be4 {[%emt 0:02:31]} Nxc5 {[%emt 0:00:28]} 31. bxc5 {[%emt 0:00:24]} d3 {[%emt 0:04:36]} 32. Qd2 {[%emt 0:00:37]} Bxa1 {[%emt 0:00:08]} 33. Rxa1 {[%emt 0:00:07]} Qe5 {[%emt 0:00:06]} 34. Nc3 {[%emt 0:00:15]} h6 {[%emt 0:00:27]} 35. Kf2 {[%emt 0:00:25]} Qxc5 {[%emt 0:01:40]} 36. Bf3 {[%emt 0:00:18]} Rb6 {[%emt 0:00:40]} 37. Ne4 {[%emt 0:00:39]} Qe5 {[%emt 0:00:38]} 38. Qa5 {[%emt 0:01:33]} Rbb8 {[%emt 0:02:30]} 39. Qc3 {[%emt 0:01:05]} Qxc3 {[%emt 0:00:26]} 40. Nxc3 {[%emt 0:00:00]} b4 {[%emt 0:00:00]} 41. axb4 {[%emt 0:00:27]} Rxb4 {[%emt 0:00:54]} 42. e4 {[%emt 0:07:23]} d2 {[%emt 0:08:00]} 43. Nfd5 {[%emt 0:02:52]} Bxd5 {[%emt 0:04:07]} 44. Nxd5 {[%emt 0:01:32]} Rb2 {[%emt 0:01:48]} 45. Ke2 {[%emt 0:04:42]} Kg7 {[%emt 0:01:23]} 1/2-1/2